[Event "Titled Tuesday Blitz August 09 Early 2022"]
[White "Drozdowski, Kacper"]
[Black "Blanco Ronquillo, Humberto L."]
[WhiteFideId "1136720"]
[BlackFideId "3504239"]
[WhiteElo "2485"]
[BlackElo "2425"]
[Result "1/2-1/2"]
[Round "10"]
[TimeControl "180+1"]
[Date "2022.08.09"]
[WhiteClock "0:00:42"]
[BlackClock "0:00:14"]

1. e4 {[%clk 0:02:41]}  c5 {[%clk 0:02:59]} 2. Nf3 {[%clk 0:02:41]}  Nc6 {[%clk 0:02:59]} 3. Nc3 {[%clk 0:02:41]}  g6 {[%clk 0:02:59]} 4. Bb5 {[%clk 0:02:40]}  Nd4 {[%clk 0:02:57]} 5. O-O {[%clk 0:02:37]}  Bg7 {[%clk 0:02:55]} 6. Re1 {[%clk 0:02:38]}  a6 {[%clk 0:02:53]} 7. Bc4 {[%clk 0:02:35]}  e6 {[%clk 0:02:32]} 8. Nxd4 {[%clk 0:02:34]}  cxd4 {[%clk 0:02:32]} 9. Ne2 {[%clk 0:02:34]}  Ne7 {[%clk 0:02:33]} 10. d3 {[%clk 0:02:31]}  d5 {[%clk 0:02:25]} 11. exd5 {[%clk 0:02:29]}  Nxd5 {[%clk 0:02:26]} 12. Nf4 {[%clk 0:02:29]}  Ne7 {[%clk 0:02:15]} 13. Qf3 {[%clk 0:02:27]}  O-O {[%clk 0:02:15]} 14. Bd2 {[%clk 0:02:24]}  Rb8 {[%clk 0:01:55]} 15. Bb3 {[%clk 0:02:23]}  b5 {[%clk 0:01:53]} 16. Rad1 {[%clk 0:02:07]}  Bb7 {[%clk 0:01:52]} 17. Qh3 {[%clk 0:02:06]}  Nd5 {[%clk 0:01:50]} 18. Nxd5 {[%clk 0:02:02]}  Bxd5 {[%clk 0:01:51]} 19. Bh6 {[%clk 0:01:43]}  Rc8 {[%clk 0:01:45]} 20. Bxg7 {[%clk 0:01:42]}  Kxg7 {[%clk 0:01:46]} 21. Re2 {[%clk 0:01:41]}  Bxb3 {[%clk 0:01:30]} 22. axb3 {[%clk 0:01:42]}  Rc5 {[%clk 0:01:29]} 23. Qg3 {[%clk 0:01:37]}  Qf6 {[%clk 0:01:28]} 24. Qd6 {[%clk 0:01:31]}  Rfc8 {[%clk 0:01:24]} 25. Rdd2 {[%clk 0:01:31]}  a5 {[%clk 0:01:23]} 26. h3 {[%clk 0:01:30]}  R8c6 {[%clk 0:01:16]} 27. Qb8 {[%clk 0:01:28]}  h5 {[%clk 0:01:16]} 28. Qa8 {[%clk 0:01:26]}  b4 {[%clk 0:01:15]} 29. Qb8 {[%clk 0:01:26]}  Rg5 {[%clk 0:01:06]} 30. Kf1 {[%clk 0:01:22]}  Rgc5 {[%clk 0:01:03]} 31. Qg3 {[%clk 0:01:21]}  Qf5 {[%clk 0:01:03]} 32. Qh4 {[%clk 0:01:20]}  Qd5 {[%clk 0:01:03]} 33. Qf4 {[%clk 0:01:18]}  e5 {[%clk 0:01:02]} 34. Qg3 {[%clk 0:01:15]}  Rf6 {[%clk 0:00:58]} 35. Kg1 {[%clk 0:01:15]}  Rf4 {[%clk 0:00:58]} 36. f3 {[%clk 0:01:09]}  h4 {[%clk 0:00:51]} 37. Qe1 {[%clk 0:01:08]}  g5 {[%clk 0:00:47]} 38. Re4 {[%clk 0:01:07]}  Rf6 {[%clk 0:00:44]} 39. Rde2 {[%clk 0:01:06]}  Re6 {[%clk 0:00:44]} 40. Qd2 {[%clk 0:01:00]}  f6 {[%clk 0:00:42]} 41. Re1 {[%clk 0:00:58]}  Rec6 {[%clk 0:00:42]} 42. Rc1 {[%clk 0:00:58]}  Qd7 {[%clk 0:00:40]} 43. Re2 {[%clk 0:00:58]}  Qc7 {[%clk 0:00:39]} 44. Qd1 {[%clk 0:00:59]}  Kg6 {[%clk 0:00:39]} 45. Rd2 {[%clk 0:00:59]}  Qa7 {[%clk 0:00:39]} 46. Qe2 {[%clk 0:00:59]}  a4 {[%clk 0:00:40]} 47. bxa4 {[%clk 0:00:59]}  Qxa4 {[%clk 0:00:41]} 48. b3 {[%clk 0:00:59]}  Qa7 {[%clk 0:00:40]} 49. Kh1 {[%clk 0:00:59]}  Qc7 {[%clk 0:00:40]} 50. Qe4+ {[%clk 0:00:59]}  Kg7 {[%clk 0:00:41]} 51. Qe2 {[%clk 0:00:59]}  Rc3 {[%clk 0:00:41]} 52. Ra1 {[%clk 0:00:54]}  Rxc2 {[%clk 0:00:41]} 53. Kh2 {[%clk 0:00:54]}  Rc1 {[%clk 0:00:39]} 54. Rda2 {[%clk 0:00:53]}  R6c2 {[%clk 0:00:31]} 55. Rxc1 {[%clk 0:00:51]}  Rxc1 {[%clk 0:00:31]} 56. Qe4 {[%clk 0:00:47]}  Rc5 {[%clk 0:00:24]} 57. Kh1 {[%clk 0:00:42]}  Rc1+ {[%clk 0:00:22]} 58. Kh2 {[%clk 0:00:42]}  Rc5 {[%clk 0:00:22]} 59. Kh1 {[%clk 0:00:42]}  Rc1+ {[%clk 0:00:14]} 60. Kh2 {[%clk 0:00:42]} 1/2-1/2


[Site "https://www.chess.com"]

[Event "Titled Tuesday Blitz August 09 Early 2022"]
[White "Drygalov, Sergey"]
[Black "Andreikin, Dmitry"]
[WhiteFideId "24171743"]
[BlackFideId "4158814"]
[WhiteElo "2523"]
[BlackElo "2736"]
[Result "0-1"]
[Round "10"]
[TimeControl "180+1"]
[Date "2022.08.09"]
[WhiteClock "0:00:06"]
[BlackClock "0:00:11"]

1. d4 {[%clk 0:02:57]}  d5 {[%clk 0:03:00]} 2. c4 {[%clk 0:02:57]}  e6 {[%clk 0:03:01]} 3. Nf3 {[%clk 0:02:56]}  Nf6 {[%clk 0:03:00]} 4. Nc3 {[%clk 0:02:57]}  a6 {[%clk 0:03:00]} 5. cxd5 {[%clk 0:02:55]}  exd5 {[%clk 0:03:01]} 6. Bg5 {[%clk 0:02:54]}  Be6 {[%clk 0:03:01]} 7. e3 {[%clk 0:02:50]}  Nbd7 {[%clk 0:03:01]} 8. Bd3 {[%clk 0:02:49]}  Bd6 {[%clk 0:03:01]} 9. O-O {[%clk 0:02:49]}  c6 {[%clk 0:03:01]} 10. Nd2 {[%clk 0:02:49]}  h6 {[%clk 0:02:52]} 11. Bh4 {[%clk 0:02:48]}  g5 {[%clk 0:02:51]} 12. Bg3 {[%clk 0:02:47]}  Bxg3 {[%clk 0:02:51]} 13. fxg3 {[%clk 0:02:29]}  Qe7 {[%clk 0:02:48]} 14. Rb1 {[%clk 0:02:24]}  O-O-O {[%clk 0:02:45]} 15. b4 {[%clk 0:02:23]}  Bg4 {[%clk 0:02:43]} 16. Qe1 {[%clk 0:02:10]}  Rhe8 {[%clk 0:02:43]} 17. e4 {[%clk 0:01:42]}  dxe4 {[%clk 0:02:40]} 18. Ndxe4 {[%clk 0:01:42]}  Nxe4 {[%clk 0:02:32]} 19. Nxe4 {[%clk 0:01:42]}  f5 {[%clk 0:02:23]} 20. Nc3 {[%clk 0:01:34]}  Qe3+ {[%clk 0:02:16]} 21. Qxe3 {[%clk 0:01:01]}  Rxe3 {[%clk 0:02:17]} 22. Rbd1 {[%clk 0:01:02]}  Bxd1 {[%clk 0:02:15]} 23. Rxd1 {[%clk 0:01:02]}  Kc7 {[%clk 0:01:55]} 24. Kf2 {[%clk 0:00:59]}  f4 {[%clk 0:01:55]} 25. gxf4 {[%clk 0:00:39]}  gxf4 {[%clk 0:01:56]} 26. Ne2 {[%clk 0:00:39]}  Nf6 {[%clk 0:01:47]} 27. Bf5 {[%clk 0:00:34]}  Ne4+ {[%clk 0:01:37]} 28. Bxe4 {[%clk 0:00:22]}  Rxe4 {[%clk 0:01:38]} 29. Rd2 {[%clk 0:00:22]}  Rde8 {[%clk 0:01:22]} 30. Kf3 {[%clk 0:00:20]}  Re3+ {[%clk 0:01:19]} 31. Kf2 {[%clk 0:00:21]}  Ra3 {[%clk 0:00:57]} 32. Nxf4 {[%clk 0:00:19]}  Kd6 {[%clk 0:00:53]} 33. h4 {[%clk 0:00:19]}  Re4 {[%clk 0:00:49]} 34. g3 {[%clk 0:00:18]}  Ree3 {[%clk 0:00:46]} 35. Ne2 {[%clk 0:00:12]}  Rf3+ {[%clk 0:00:43]} 36. Kg2 {[%clk 0:00:12]}  Rfd3 {[%clk 0:00:41]} 37. Rc2 {[%clk 0:00:12]}  a5 {[%clk 0:00:39]} 38. bxa5 {[%clk 0:00:12]}  Rxa5 {[%clk 0:00:39]} 39. Kf2 {[%clk 0:00:12]}  Rf5+ {[%clk 0:00:38]} 40. Kg2 {[%clk 0:00:13]}  Ra5 {[%clk 0:00:33]} 41. Rb2 {[%clk 0:00:11]}  b5 {[%clk 0:00:32]} 42. Rc2 {[%clk 0:00:12]}  Rda3 {[%clk 0:00:31]} 43. Nc1 {[%clk 0:00:11]}  R5a4 {[%clk 0:00:31]} 44. Rd2 {[%clk 0:00:09]}  Kd5 {[%clk 0:00:30]} 45. Kh3 {[%clk 0:00:08]}  Rxd4 {[%clk 0:00:30]} 46. Rf2 {[%clk 0:00:08]}  Rc4 {[%clk 0:00:23]} 47. Ne2 {[%clk 0:00:07]}  c5 {[%clk 0:00:18]} 48. h5 {[%clk 0:00:04]}  Rxa2 {[%clk 0:00:13]} 49. Nf4+ {[%clk 0:00:04]}  Rxf4 {[%clk 0:00:14]} 50. Rxa2 {[%clk 0:00:05]}  Ra4 {[%clk 0:00:13]} 51. Rd2+ {[%clk 0:00:04]}  Rd4 {[%clk 0:00:13]} 52. Rf2 {[%clk 0:00:04]}  b4 {[%clk 0:00:13]} 53. g4 {[%clk 0:00:03]}  b3 {[%clk 0:00:13]} 54. Kg3 {[%clk 0:00:03]}  Rb4 {[%clk 0:00:13]} 55. Rb2 {[%clk 0:00:03]}  c4 {[%clk 0:00:13]} 56. Rd2+ {[%clk 0:00:03]}  Kc5 {[%clk 0:00:12]} 57. g5 {[%clk 0:00:04]}  c3 {[%clk 0:00:10]} 58. Rd8 {[%clk 0:00:02]}  b2 {[%clk 0:00:10]} 59. Rc8+ {[%clk 0:00:02]}  Kd6 {[%clk 0:00:09]} 60. Rd8+ {[%clk 0:00:02]}  Ke7 {[%clk 0:00:09]} 61. Rd1 {[%clk 0:00:03]}  c2 {[%clk 0:00:09]} 62. Re1+ {[%clk 0:00:03]}  Kf7 {[%clk 0:00:08]} 63. g6+ {[%clk 0:00:04]}  Kf6 {[%clk 0:00:09]} 64. Rf1+ {[%clk 0:00:04]}  Kg7 {[%clk 0:00:09]} 65. Rf7+ {[%clk 0:00:04]}  Kg8 {[%clk 0:00:10]} 66. Rd7 {[%clk 0:00:04]}  c1=Q {[%clk 0:00:09]} 67. Rd8+ {[%clk 0:00:05]}  Kg7 {[%clk 0:00:10]} 68. Rd7+ {[%clk 0:00:06]}  Kf6 {[%clk 0:00:11]} 69. Rf7+ {[%clk 0:00:06]}  Ke6 {[%clk 0:00:11]} 0-1


[Site "https://www.chess.com"]

[Event "Titled Tuesday Blitz August 09 Early 2022"]
[White "Eynullayev, Altay"]
[Black "Siva Mahadevan"]
[WhiteFideId "13413562"]
[BlackFideId "25043153"]
[WhiteElo "2079"]
[BlackElo "2203"]
[Result "1-0"]
[Round "10"]
[TimeControl "180+1"]
[Date "2022.08.09"]
[WhiteClock "0:01:04"]
[BlackClock "0:00:11"]

1. e4 {[%clk 0:03:00]}  c5 {[%clk 0:02:59]} 2. Nf3 {[%clk 0:03:00]}  Nc6 {[%clk 0:02:59]} 3. Bb5 {[%clk 0:03:00]}  Na5 {[%clk 0:02:59]} 4. Be2 {[%clk 0:02:54]}  a6 {[%clk 0:02:58]} 5. O-O {[%clk 0:02:54]}  b5 {[%clk 0:02:58]} 6. a4 {[%clk 0:02:53]}  b4 {[%clk 0:02:57]} 7. d4 {[%clk 0:02:53]}  cxd4 {[%clk 0:02:58]} 8. Nxd4 {[%clk 0:02:51]}  e6 {[%clk 0:02:59]} 9. c3 {[%clk 0:02:49]}  Bb7 {[%clk 0:02:58]} 10. cxb4 {[%clk 0:02:43]}  Bxb4 {[%clk 0:02:59]} 11. Nc3 {[%clk 0:02:43]}  Nf6 {[%clk 0:02:58]} 12. f3 {[%clk 0:02:40]}  O-O {[%clk 0:02:56]} 13. Be3 {[%clk 0:02:40]}  Rc8 {[%clk 0:02:54]} 14. Rc1 {[%clk 0:02:40]}  Nc4 {[%clk 0:02:51]} 15. Bxc4 {[%clk 0:02:39]}  Rxc4 {[%clk 0:02:52]} 16. Qd3 {[%clk 0:02:18]}  Qc8 {[%clk 0:02:51]} 17. e5 {[%clk 0:02:16]}  Bxc3 {[%clk 0:02:38]} 18. exf6 {[%clk 0:02:09]}  Bxd4 {[%clk 0:02:22]} 19. Rxc4 {[%clk 0:01:59]}  Bxe3+ {[%clk 0:01:52]} 20. Kh1 {[%clk 0:02:00]}  Qxc4 {[%clk 0:01:48]} 21. Qxc4 {[%clk 0:02:01]}  gxf6 {[%clk 0:01:48]} 22. Qd3 {[%clk 0:01:56]}  Bf4 {[%clk 0:01:44]} 23. Qxd7 {[%clk 0:01:56]}  Bd5 {[%clk 0:01:44]} 24. b4 {[%clk 0:01:54]}  Rb8 {[%clk 0:01:44]} 25. b5 {[%clk 0:01:53]}  axb5 {[%clk 0:01:44]} 26. axb5 {[%clk 0:01:53]}  Rb7 {[%clk 0:01:22]} 27. Qe8+ {[%clk 0:01:52]}  Kg7 {[%clk 0:01:22]} 28. Rb1 {[%clk 0:01:52]}  Be3 {[%clk 0:01:19]} 29. h4 {[%clk 0:01:45]}  Ba2 {[%clk 0:00:38]} 30. Rb2 {[%clk 0:01:43]}  Bd5 {[%clk 0:00:36]} 31. Rb1 {[%clk 0:01:41]}  Ba2 {[%clk 0:00:35]} 32. Rb4 {[%clk 0:01:41]}  h5 {[%clk 0:00:29]} 33. Qd8 {[%clk 0:01:28]}  Bd5 {[%clk 0:00:27]} 34. b6 {[%clk 0:01:27]}  Bc5 {[%clk 0:00:25]} 35. Rb5 {[%clk 0:01:23]}  Bf2 {[%clk 0:00:25]} 36. Rxd5 {[%clk 0:01:09]}  exd5 {[%clk 0:00:25]} 37. Qxd5 {[%clk 0:01:10]}  Rxb6 {[%clk 0:00:25]} 38. Qxh5 {[%clk 0:01:06]}  Bg3 {[%clk 0:00:11]} 39. Qg4+ {[%clk 0:01:04]} 1-0


[Site "https://www.chess.com"]

[Event "Titled Tuesday Blitz August 09 Early 2022"]
[White "Eynullayev, Atilla"]
[Black "Vazquez Espino, Uriel"]
[WhiteFideId "13413570"]
[BlackFideId "5119138"]
[WhiteElo "1936"]
[BlackElo "2394"]
[Result "1-0"]
[Round "10"]
[TimeControl "180+1"]
[Date "2022.08.09"]
[WhiteClock "0:02:30"]
[BlackClock "0:00:55"]

1. d4 {[%clk 0:03:00]}  Nf6 {[%clk 0:02:59]} 2. c4 {[%clk 0:03:01]}  e6 {[%clk 0:02:59]} 3. Nc3 {[%clk 0:03:01]}  Bb4 {[%clk 0:03:00]} 4. e3 {[%clk 0:03:01]}  b6 {[%clk 0:03:00]} 5. Ne2 {[%clk 0:03:01]}  O-O {[%clk 0:02:58]} 6. a3 {[%clk 0:03:01]}  Be7 {[%clk 0:02:55]} 7. d5 {[%clk 0:03:01]}  Ba6 {[%clk 0:02:46]} 8. Ng3 {[%clk 0:03:00]}  Re8 {[%clk 0:02:44]} 9. Be2 {[%clk 0:02:55]}  exd5 {[%clk 0:02:40]} 10. cxd5 {[%clk 0:02:55]}  Bxe2 {[%clk 0:02:39]} 11. Qxe2 {[%clk 0:02:55]}  Bd6 {[%clk 0:02:38]} 12. O-O {[%clk 0:02:54]}  g6 {[%clk 0:02:33]} 13. e4 {[%clk 0:02:54]}  c6 {[%clk 0:02:29]} 14. Bg5 {[%clk 0:02:53]}  Be7 {[%clk 0:02:13]} 15. d6 {[%clk 0:02:45]}  Bxd6 {[%clk 0:02:11]} 16. f4 {[%clk 0:02:45]}  Be7 {[%clk 0:02:05]} 17. e5 {[%clk 0:02:45]}  Nd5 {[%clk 0:02:03]} 18. Bxe7 {[%clk 0:02:45]}  Qxe7 {[%clk 0:01:53]} 19. Nxd5 {[%clk 0:02:40]}  cxd5 {[%clk 0:01:53]} 20. Qf3 {[%clk 0:02:40]}  Qc5+ {[%clk 0:01:48]} 21. Kh1 {[%clk 0:02:40]}  Nc6 {[%clk 0:01:48]} 22. Rac1 {[%clk 0:02:38]}  Qb5 {[%clk 0:01:43]} 23. Qg4 {[%clk 0:02:35]}  Rac8 {[%clk 0:01:35]} 24. Nh5 {[%clk 0:02:34]}  f5 {[%clk 0:00:56]} 25. exf6 {[%clk 0:02:32]}  Kf7 {[%clk 0:00:55]} 26. Qxd7+ {[%clk 0:02:30]} 1-0


[Site "https://www.chess.com"]

[Event "Titled Tuesday Blitz August 09 Early 2022"]
[White "Filippova, Margarita"]
[Black "Grot, Blazej"]
[WhiteFideId "34199680"]
[BlackFideId "21835845"]
[WhiteElo "1734"]
[BlackElo "1614"]
[Result "0-1"]
[Round "10"]
[TimeControl "180+1"]
[Date "2022.08.09"]
[WhiteClock "0:00:24"]
[BlackClock "0:00:39"]

1. Nf3 {[%clk 0:03:00]}  Nf6 {[%clk 0:02:59]} 2. d4 {[%clk 0:03:00]}  e6 {[%clk 0:02:56]} 3. Bf4 {[%clk 0:02:56]}  d5 {[%clk 0:02:54]} 4. e3 {[%clk 0:02:57]}  c5 {[%clk 0:02:54]} 5. c3 {[%clk 0:02:56]}  Bd6 {[%clk 0:02:53]} 6. Bg3 {[%clk 0:02:55]}  Nc6 {[%clk 0:02:53]} 7. Nbd2 {[%clk 0:02:55]}  Qe7 {[%clk 0:02:53]} 8. Ne5 {[%clk 0:02:53]}  O-O {[%clk 0:02:50]} 9. Bd3 {[%clk 0:02:53]}  Nd7 {[%clk 0:02:50]} 10. f4 {[%clk 0:02:49]}  f6 {[%clk 0:02:43]} 11. Nxc6 {[%clk 0:02:48]}  bxc6 {[%clk 0:02:42]} 12. O-O {[%clk 0:02:48]}  cxd4 {[%clk 0:02:41]} 13. exd4 {[%clk 0:02:48]}  c5 {[%clk 0:02:41]} 14. Nf3 {[%clk 0:02:47]}  cxd4 {[%clk 0:02:40]} 15. Nxd4 {[%clk 0:02:44]}  Nc5 {[%clk 0:02:37]} 16. Bc2 {[%clk 0:02:44]}  Bb7 {[%clk 0:02:35]} 17. Qe2 {[%clk 0:02:43]}  Rae8 {[%clk 0:02:34]} 18. Rfe1 {[%clk 0:02:41]}  Qc7 {[%clk 0:02:32]} 19. Qh5 {[%clk 0:02:37]}  g6 {[%clk 0:02:28]} 20. Qg4 {[%clk 0:02:34]}  f5 {[%clk 0:02:24]} 21. Qe2 {[%clk 0:02:31]}  Bxf4 {[%clk 0:02:14]} 22. Bxf4 {[%clk 0:02:19]}  Qxf4 {[%clk 0:01:54]} 23. Qb5 {[%clk 0:02:18]}  Qc7 {[%clk 0:01:52]} 24. Rad1 {[%clk 0:02:10]}  e5 {[%clk 0:01:49]} 25. Nf3 {[%clk 0:02:03]}  a6 {[%clk 0:01:48]} 26. Qe2 {[%clk 0:01:41]}  Ne4 {[%clk 0:01:46]} 27. Nd2 {[%clk 0:01:32]}  Qc5+ {[%clk 0:01:42]} 28. Qe3 {[%clk 0:01:24]}  d4 {[%clk 0:01:38]} 29. Bb3+ {[%clk 0:01:23]}  Kg7 {[%clk 0:01:36]} 30. Nxe4 {[%clk 0:01:19]}  Bxe4 {[%clk 0:01:32]} 31. cxd4 {[%clk 0:01:19]}  exd4 {[%clk 0:01:32]} 32. Qxd4+ {[%clk 0:01:19]}  Qxd4+ {[%clk 0:01:32]} 33. Rxd4 {[%clk 0:01:18]}  Rd8 {[%clk 0:01:32]} 34. Red1 {[%clk 0:01:17]}  Rxd4 {[%clk 0:01:28]} 35. Rxd4 {[%clk 0:01:17]}  Rc8 {[%clk 0:01:29]} 36. Rd7+ {[%clk 0:01:15]}  Kh6 {[%clk 0:01:26]} 37. h4 {[%clk 0:01:12]}  Rc1+ {[%clk 0:01:25]} 38. Kh2 {[%clk 0:01:12]}  Rb1 {[%clk 0:01:17]} 39. Bg8 {[%clk 0:01:07]}  Kh5 {[%clk 0:01:17]} 40. Kh3 {[%clk 0:01:04]}  h6 {[%clk 0:01:12]} 41. Rd6 {[%clk 0:00:59]}  Rxb2 {[%clk 0:01:01]} 42. Bf7 {[%clk 0:00:55]}  Rxg2 {[%clk 0:01:00]} 43. Re6 {[%clk 0:00:50]}  Rg4 {[%clk 0:00:57]} 44. Rxa6 {[%clk 0:00:42]}  Rxh4+ {[%clk 0:00:56]} 45. Kg3 {[%clk 0:00:43]}  Rg4+ {[%clk 0:00:55]} 46. Kh3 {[%clk 0:00:43]}  f4 {[%clk 0:00:52]} 47. Bc4 {[%clk 0:00:37]}  Bf5 {[%clk 0:00:49]} 48. Be2 {[%clk 0:00:36]}  Kg5 {[%clk 0:00:47]} 49. Bxg4 {[%clk 0:00:36]}  Bxg4+ {[%clk 0:00:46]} 50. Kg2 {[%clk 0:00:37]}  h5 {[%clk 0:00:44]} 51. a4 {[%clk 0:00:36]}  Bf5 {[%clk 0:00:44]} 52. Ra7 {[%clk 0:00:29]}  Kg4 {[%clk 0:00:43]} 53. Rg7 {[%clk 0:00:28]}  g5 {[%clk 0:00:43]} 54. a5 {[%clk 0:00:27]}  Be4+ {[%clk 0:00:42]} 55. Kf2 {[%clk 0:00:27]}  h4 {[%clk 0:00:42]} 56. a6 {[%clk 0:00:27]}  h3 {[%clk 0:00:42]} 57. Re7 {[%clk 0:00:28]}  h2 {[%clk 0:00:40]} 58. Rxe4 {[%clk 0:00:24]}  h1=Q {[%clk 0:00:40]} 59. Re1 {[%clk 0:00:24]}  Qh2+ {[%clk 0:00:39]} 0-1


[Site "https://www.chess.com"]

[Event "Titled Tuesday Blitz August 09 Early 2022"]
[White "Garrido, Denis"]
[Black "D`Arruda, Ricardo D."]
[WhiteFideId "601217"]
[BlackFideId "100692"]
[WhiteElo "2352"]
[BlackElo "2470"]
[Result "1/2-1/2"]
[Round "10"]
[TimeControl "180+1"]
[Date "2022.08.09"]
[WhiteClock "0:01:17"]
[BlackClock "0:01:23"]

1. e4 {[%clk 0:03:00]}  c5 {[%clk 0:02:57]} 2. Nf3 {[%clk 0:03:01]}  Nc6 {[%clk 0:02:57]} 3. Bb5 {[%clk 0:03:00]}  g6 {[%clk 0:02:56]} 4. O-O {[%clk 0:03:00]}  Bg7 {[%clk 0:02:56]} 5. Re1 {[%clk 0:03:00]}  Nf6 {[%clk 0:02:55]} 6. e5 {[%clk 0:03:00]}  Nd5 {[%clk 0:02:54]} 7. Nc3 {[%clk 0:03:00]}  Nc7 {[%clk 0:02:54]} 8. Bxc6 {[%clk 0:03:00]}  dxc6 {[%clk 0:02:54]} 9. Ne4 {[%clk 0:03:00]}  Ne6 {[%clk 0:02:54]} 10. d3 {[%clk 0:03:00]}  O-O {[%clk 0:02:52]} 11. Be3 {[%clk 0:03:01]}  b6 {[%clk 0:02:52]} 12. Qd2 {[%clk 0:03:01]}  Re8 {[%clk 0:02:49]} 13. Bh6 {[%clk 0:03:00]}  Bh8 {[%clk 0:02:48]} 14. h4 {[%clk 0:02:59]}  Nd4 {[%clk 0:02:43]} 15. Nxd4 {[%clk 0:02:58]}  cxd4 {[%clk 0:02:43]} 16. Qf4 {[%clk 0:02:58]}  Bf5 {[%clk 0:02:36]} 17. Ng3 {[%clk 0:02:56]}  Be6 {[%clk 0:02:35]} 18. h5 {[%clk 0:02:52]}  c5 {[%clk 0:02:33]} 19. Ne4 {[%clk 0:02:49]}  Bf5 {[%clk 0:02:25]} 20. Ng5 {[%clk 0:02:48]}  f6 {[%clk 0:02:21]} 21. Nf3 {[%clk 0:02:46]}  Qd7 {[%clk 0:02:12]} 22. Re2 {[%clk 0:02:32]}  Bg4 {[%clk 0:02:11]} 23. exf6 {[%clk 0:02:03]}  exf6 {[%clk 0:02:01]} 24. Rae1 {[%clk 0:01:49]}  Bxh5 {[%clk 0:01:45]} 25. Rxe8+ {[%clk 0:01:45]}  Rxe8 {[%clk 0:01:46]} 26. Rxe8+ {[%clk 0:01:45]}  Qxe8 {[%clk 0:01:46]} 27. g4 {[%clk 0:01:45]}  g5 {[%clk 0:01:43]} 28. Nxg5 {[%clk 0:01:20]}  fxg5 {[%clk 0:01:39]} 29. Qxg5+ {[%clk 0:01:20]}  Bg6 {[%clk 0:01:39]} 30. Qd5+ {[%clk 0:01:18]}  Bf7 {[%clk 0:01:29]} 31. Qg5+ {[%clk 0:01:17]}  Bg6 {[%clk 0:01:28]} 32. Qd5+ {[%clk 0:01:18]}  Qf7 {[%clk 0:01:23]} 33. Qd8+ {[%clk 0:01:17]}  Qe8 {[%clk 0:01:23]} 34. Qd5+ {[%clk 0:01:17]} 1/2-1/2


[Site "https://www.chess.com"]

[Event "Titled Tuesday Blitz August 09 Early 2022"]
[White "Gurevich, Dmitry"]
[Black "Dushyant Sharma"]
[WhiteFideId "2000407"]
[BlackFideId "25065130"]
[WhiteElo "2506"]
[BlackElo "2133"]
[Result "1-0"]
[Round "10"]
[TimeControl "180+1"]
[Date "2022.08.09"]
[WhiteClock "0:00:15"]
[BlackClock "0:00:11"]

1. d4 {[%clk 0:03:00]}  d5 {[%clk 0:03:00]} 2. c4 {[%clk 0:03:01]}  e6 {[%clk 0:03:00]} 3. Nc3 {[%clk 0:03:00]}  f5 {[%clk 0:02:58]} 4. Bf4 {[%clk 0:02:58]}  c6 {[%clk 0:02:58]} 5. e3 {[%clk 0:02:59]}  Nf6 {[%clk 0:02:58]} 6. Nf3 {[%clk 0:02:59]}  Bd6 {[%clk 0:02:59]} 7. Ne5 {[%clk 0:02:54]}  O-O {[%clk 0:02:58]} 8. g3 {[%clk 0:02:52]}  Ne4 {[%clk 0:02:55]} 9. h4 {[%clk 0:02:47]}  Qe7 {[%clk 0:02:50]} 10. Bg2 {[%clk 0:02:44]}  Nd7 {[%clk 0:02:50]} 11. Nxd7 {[%clk 0:02:38]}  Bxd7 {[%clk 0:02:51]} 12. O-O {[%clk 0:02:35]}  Bxf4 {[%clk 0:02:41]} 13. exf4 {[%clk 0:02:34]}  Qb4 {[%clk 0:02:37]} 14. cxd5 {[%clk 0:02:20]}  exd5 {[%clk 0:02:37]} 15. Rc1 {[%clk 0:02:14]}  Qxb2 {[%clk 0:02:33]} 16. Nxe4 {[%clk 0:02:12]}  fxe4 {[%clk 0:02:34]} 17. Rb1 {[%clk 0:02:12]}  Qxa2 {[%clk 0:02:30]} 18. Rxb7 {[%clk 0:02:12]}  Be6 {[%clk 0:02:17]} 19. Qh5 {[%clk 0:02:09]}  Rab8 {[%clk 0:02:08]} 20. Rxb8 {[%clk 0:02:01]}  Rxb8 {[%clk 0:02:06]} 21. Qe5 {[%clk 0:02:00]}  Re8 {[%clk 0:02:05]} 22. Rc1 {[%clk 0:01:55]}  Qa4 {[%clk 0:01:32]} 23. Qd6 {[%clk 0:01:49]}  Bf7 {[%clk 0:01:09]} 24. Rxc6 {[%clk 0:01:37]}  Qd1+ {[%clk 0:01:01]} 25. Kh2 {[%clk 0:01:34]}  Qe2 {[%clk 0:01:00]} 26. Qd7 {[%clk 0:00:47]}  Qxf2 {[%clk 0:00:54]} 27. Rc8 {[%clk 0:00:44]}  Kf8 {[%clk 0:00:33]} 28. Rxe8+ {[%clk 0:00:38]}  Bxe8 {[%clk 0:00:33]} 29. Qd6+ {[%clk 0:00:39]}  Kg8 {[%clk 0:00:27]} 30. Qxd5+ {[%clk 0:00:39]}  Kf8 {[%clk 0:00:24]} 31. Qxe4 {[%clk 0:00:37]}  a5 {[%clk 0:00:21]} 32. d5 {[%clk 0:00:35]}  Qd2 {[%clk 0:00:19]} 33. Qe5 {[%clk 0:00:31]}  a4 {[%clk 0:00:17]} 34. d6 {[%clk 0:00:26]}  Bc6 {[%clk 0:00:16]} 35. Qe7+ {[%clk 0:00:26]}  Kg8 {[%clk 0:00:17]} 36. Qd8+ {[%clk 0:00:26]}  Kf7 {[%clk 0:00:14]} 37. Qc7+ {[%clk 0:00:26]}  Ke6 {[%clk 0:00:14]} 38. Qxc6 {[%clk 0:00:26]}  Qxd6 {[%clk 0:00:15]} 39. Qxd6+ {[%clk 0:00:23]}  Kxd6 {[%clk 0:00:16]} 40. Be4 {[%clk 0:00:22]}  a3 {[%clk 0:00:14]} 41. Bb1 {[%clk 0:00:22]}  Kc5 {[%clk 0:00:13]} 42. Ba2 {[%clk 0:00:21]}  Kd4 {[%clk 0:00:11]} 43. g4 {[%clk 0:00:21]}  Ke4 {[%clk 0:00:12]} 44. Kg3 {[%clk 0:00:21]}  g6 {[%clk 0:00:12]} 45. g5 {[%clk 0:00:19]}  Ke3 {[%clk 0:00:12]} 46. Kg4 {[%clk 0:00:19]}  Ke4 {[%clk 0:00:11]} 47. Bb1+ {[%clk 0:00:19]}  Kd4 {[%clk 0:00:10]} 48. f5 {[%clk 0:00:18]}  gxf5+ {[%clk 0:00:09]} 49. Kxf5 {[%clk 0:00:18]}  Kc3 {[%clk 0:00:10]} 50. Ba2 {[%clk 0:00:18]}  Kd4 {[%clk 0:00:10]} 51. h5 {[%clk 0:00:17]}  Kc3 {[%clk 0:00:09]} 52. g6 {[%clk 0:00:16]}  hxg6+ {[%clk 0:00:09]} 53. hxg6 {[%clk 0:00:16]}  Kb2 {[%clk 0:00:10]} 54. Be6 {[%clk 0:00:16]}  a2 {[%clk 0:00:11]} 55. Bxa2 {[%clk 0:00:15]} 1-0


[Site "https://www.chess.com"]